bitfinex/quotes_ETHUSD_20260121
["timestamp","ask_amount","ask_price","bid_price","bid_amount"]
[1769008314147,0.98111413,2994.0,2991.9,10.026619]
[1769008314389,9.81114133,2993.8,2991.7,7.23897651]
[1769008314538,9.81114133,2993.8,2991.8,0.552]
[1769008314739,9.81114133,2993.8,2991.9,0.552]
[1769008314938,9.81114133,2993.6,2991.4,0.001]
[1769008315151,9.81114133,2993.4,2991.4,0.99616763]
[1769008315351,9.81114133,2993.2,2991.5,0.552]
[1769008315954,9.81114133,2993.2,2991.4,0.001]
[1769008315955,9.81114133,2993.2,2991.6,0.552]
[1769008316359,19.83419434,2993.1,2991.4,0.001]
[1769008316575,19.83419434,2993.1,2991.5,0.552]
[1769008316781,10.02305301,2993.1,2991.4,0.001]
[1769008317158,10.02305301,2993.1,2991.5,0.552]
[1769008317357,10.02305301,2993.1,2991.4,0.001]
[1769008317884,10.02305301,2993.1,2991.5,0.552]
[1769008318189,6.68203534,2993.1,2991.5,0.552]
[1769008318483,6.6818121,2993.2,2991.6,0.03342692]
[1769008318683,0.66818121,2993.1,2991.7,0.39282256]
[1769008319055,0.66818121,2993.1,2991.8,0.552]
[1769008319685,10.33439486,2993.1,2991.4,0.001]
[1769008319873,10.33439486,2993.1,2991.5,0.552]
[1769008320289,9.66621365,2992.9,2991.4,0.001]
[1769008320480,10.02405771,2992.8,2991.6,0.552]
[1769008320668,1.00240577,2992.7,2991.6,0.552]
[1769008321386,1.00240577,2992.7,2991.4,0.001]
[1769008321757,10.66861942,2992.7,2991.2,0.001]
[1769008321958,9.66621365,2992.5,2991.3,0.552]
[1769008322672,10.02539766,2992.4,2991.3,0.552]
[1769008322866,1.96916113,2992.3,2991.3,0.552]
[1769008323193,1.96916113,2992.3,2991.2,0.001]
[1769008323388,1.96916113,2992.3,2991.3,0.552]
[1769008324382,10.02539766,2992.4,2991.3,0.552]
[1769008324581,13.00735412,2993.0,2991.3,0.552]
[1769008324582,19.68993644,2992.9,2991.3,0.552]
[1769008324859,3.34124093,2992.9,2991.4,11.58138]
[1769008325063,3.34124093,2992.9,2991.5,0.03342804]
[1769008325288,3.34124093,2992.9,2991.3,3.89496373]
[1769008325289,6.68248186,2992.9,2991.4,0.03342916]
[1769008325590,4.07630724,2992.9,2991.5,0.39283929]
[1769008325897,6.68047296,2993.8,2991.9,9.87433851]
[1769008326195,3.34023648,2993.8,2992.1,9.689916]
[1769008326396,7.34852026,2993.8,2992.2,1.69055234]
[1769008326559,7.34852026,2993.8,2992.2,5.03249354]
[1769008326888,7.34852026,2993.8,2992.2,1.69055234]
[1769008327090,7.34852026,2993.8,2991.5,0.001]
[1769008327091,9.66621365,2993.7,2991.5,0.001]
[1769008327254,14.02899322,2993.8,2992.3,0.552]
[1769008327255,10.68875674,2993.8,2992.3,0.552]
[1769008327885,7.34852026,2993.8,2992.3,0.552]
[1769008329066,10.68875674,2993.8,2991.7,9.87433851]
[1769008329270,14.02899322,2993.8,2991.8,0.552]
[1769008329466,1.40289932,2993.7,2991.9,1.04263385]
[1769008330888,6.68091928,2993.6,2991.9,4.38497344]
[1769008331090,1.40289932,2993.7,2992.0,9.90776096]
[1769008331269,3.33964711,2994.4,2992.3,9.87433851]
[1769008331466,9.66621365,2994.3,2992.4,1.53943385]
[1769008331670,9.66621365,2994.3,2992.4,0.552]
[1769008332072,9.66621365,2994.3,2991.9,13.21664547]
[1769008332401,9.66621365,2994.3,2991.7,7.23897651]
[1769008332601,9.66621365,2994.1,2991.5,0.001]
[1769008332804,13.36094592,2993.8,2991.8,0.552]
[1769008332975,11.31351745,2993.7,2991.8,0.552]
[1769008333310,11.00230824,2993.7,2991.8,0.552]
[1769008334174,9.66621365,2993.5,2991.5,0.001]
[1769008334385,9.66621365,2993.3,2991.5,0.001]
[1769008334580,1.33609459,2993.7,2991.6,0.552]
[1769008334581,9.66621365,2993.1,2991.6,0.552]
[1769008335007,19.68960155,2993.0,2991.6,0.552]
[1769008335225,19.68960155,2993.0,2991.7,0.552]
[1769008335226,9.66621365,2992.9,2991.7,0.552]
[1769008335711,10.0233879,2993.0,2991.7,0.552]
[1769008335912,6.6822586,2993.0,2991.7,0.552]
[1769008336109,0.66822586,2992.9,2991.8,0.03342469]
[1769008336275,0.66822586,2992.9,2991.7,0.552]
[1769008336475,3.34105611,2993.1,2991.8,0.03342469]
[1769008336792,3.34105611,2993.1,2991.7,9.86236572]
[1769008337110,6.68104612,2993.6,2991.8,3.37586139]
[1769008337305,6.68104612,2993.6,2991.7,9.86236572]
[1769008337306,10.02156918,2993.6,2991.7,13.20493786]
[1769008337506,10.02156918,2993.6,2991.8,3.34242099]
[1769008337716,1.13576638,2993.5,2991.9,1.32047867]
[1769008338791,1.13576638,2993.5,2992.0,9.587171]
[1769008338990,0.002,2993.6,2992.3,9.31036572]
[1769008339196,0.002,2993.6,2992.4,3.34179922]
[1769008339400,0.002,2993.6,2992.4,3.37521721]
[1769008339600,0.002,2993.6,2992.5,9.31036572]
[1769008340111,0.002,2993.6,2992.2,3.34194975]
[1769008340312,0.002,2993.6,2992.3,0.33419498]
[1769008340481,0.002,2993.6,2992.4,0.552]
[1769008341525,0.002,2993.6,2991.5,0.001]
[1769008341725,0.002,2993.6,2991.7,7.38476175]
[1769008341930,0.002,2993.6,2991.7,7.38481594]
[1769008342114,0.002,2993.6,2991.7,3.34257794]
[1769008342828,1.00230442,2993.5,2991.8,3.73190197]
[1769008343040,1.00230442,2993.5,2991.8,0.38945779]
[1769008343198,9.76966382,2993.3,2991.5,0.001]
[1769008343401,9.76966382,2993.3,2991.6,0.552]
[1769008343625,9.76966382,2993.3,2991.7,0.552]
[1769008343927,10.02204849,2993.4,2991.8,0.03342469]
[1769008344224,1.10243529,2993.3,2991.7,0.552]
[1769008344721,1.10243529,2993.3,2991.8,0.03342469]
[1769008344924,10.87209911,2993.3,2991.5,0.001]
[1769008345227,10.87209911,2993.3,2991.6,0.552]
[1769008345228,6.6822586,2993.0,2991.6,0.552]
[1769008345428,0.66822586,2992.9,2991.6,0.552]
[1769008346124,10.43788968,2992.9,2991.5,0.001]
[1769008346298,10.43788968,2992.9,2991.7,0.552]
[1769008347312,6.68270514,2992.8,2991.7,0.552]
[1769008349114,3.34057123,2993.5,2991.9,9.31036572]
[1769008349352,9.77166382,2993.6,2992.0,0.552]
[1769008350242,9.77166382,2993.6,2991.6,9.31036572]
[1769008350450,0.97716638,2993.5,2991.9,7.471014]
[1769008350646,0.002,2993.6,2992.0,9.34378817]
[1769008350817,0.002,2993.4,2992.0,9.31036572]
[1769008351219,0.002,2993.4,2992.2,6.68404518]
[1769008351538,0.002,2993.4,2992.3,2.139747]
[1769008352034,0.002,2993.4,2992.4,0.552]
[1769008352533,9.77166382,2993.4,2991.5,0.001]
[1769008352739,9.76966382,2993.2,2991.6,0.552]
[1769008353555,6.68203534,2993.1,2991.6,0.552]
[1769008353852,6.68203534,2993.1,2991.7,0.03342581]
[1769008354161,4.31798658,2993.3,2991.7,0.03342581]
[1769008354162,4.3179909,2993.3,2991.7,9.31036572]
[1769008354342,6.68164904,2993.3,2991.8,0.552]
[1769008355542,9.77166382,2993.4,2991.5,0.001]
[1769008355918,9.76966382,2993.2,2991.5,0.001]
[1769008356118,9.76966382,2993.0,2991.6,0.552]
[1769008356343,9.76966382,2992.8,2991.5,0.001]
[1769008356549,1.32060863,2992.9,2991.5,0.001]
[1769008356550,1.00820659,2992.9,2991.5,0.001]
[1769008356747,9.77166382,2993.4,2991.6,0.552]
[1769008356927,10.08205758,2993.3,2991.6,0.552]
[1769008357124,9.76966382,2993.1,2991.6,0.552]
[1769008357353,9.76966382,2992.9,2991.6,0.552]
[1769008357655,6.68270514,2992.8,2991.6,0.552]
[1769008357855,3.34135257,2992.8,2991.6,0.552]
[1769008358451,6.68270514,2992.8,2991.6,0.552]
[1769008358619,9.76966382,2992.7,2991.5,0.001]
[1769008358825,9.76966382,2992.5,2991.5,0.553]
[1769008359465,6.68359844,2992.4,2991.5,0.553]
[1769008359624,1.64532623,2992.3,2991.5,0.553]
[1769008359819,1.64532623,2992.3,2991.5,0.001]
[1769008360250,1.64532623,2992.3,2991.5,0.553]
[1769008360626,1.64532623,2992.3,2991.3,0.552]
[1769008361445,6.68404518,2992.2,2991.3,0.552]
[1769008361617,0.83293714,2992.1,2991.3,0.552]
[1769008362025,1.64532623,2992.3,2991.3,0.552]
[1769008362225,6.6833261,2992.6,2991.3,0.552]
[1769008362645,3.34166305,2992.6,2991.8,0.001]
[1769008363048,9.77150096,2992.7,2991.8,0.001]
[1769008363433,3.34310086,2993.1,2991.8,0.001]
[1769008363434,0.002,2993.1,2991.8,0.001]
[1769008365334,9.76966382,2992.9,2991.2,0.001]
[1769008365533,0.31219267,2993.0,2991.2,0.001]
[1769008365534,13.36630352,2992.6,2991.3,0.552]
[1769008365734,0.31219267,2992.5,2991.3,0.552]
[1769008366056,0.31219267,2992.5,2991.2,0.001]
[1769008366057,9.73850137,2992.5,2991.2,0.553]
[1769008366261,0.31219267,2992.4,2991.2,0.553]
[1769008366565,9.4263087,2992.5,2991.2,0.553]
[1769008366749,2.92226122,2992.4,2991.2,0.553]
[1769008367259,9.4263087,2992.3,2990.8,0.552]
[1769008367458,0.31224107,2992.2,2990.8,0.552]
[1769008367761,10.33864391,2992.1,2990.8,0.552]
[1769008367962,10.02640284,2992.1,2990.8,0.552]
[1769008368256,1.00264028,2992.0,2990.8,0.552]
[1769008368622,1.00264028,2992.0,2990.5,0.001]
[1769008368827,1.00264028,2992.0,2990.6,0.553]
[1769008369527,10.02707307,2991.9,2990.6,0.553]
[1769008371727,10.02707307,2991.9,2990.5,0.001]
[1769008371927,1.10297133,2991.8,2990.6,0.553]
[1769008372341,10.52928003,2991.8,2990.5,0.001]
[1769008372542,10.52928003,2991.8,2990.6,0.553]
[1769008372738,9.4263087,2991.6,2990.5,0.001]
[1769008372943,10.40011653,2991.5,2990.5,0.001]
[1769008373465,10.40011653,2991.5,2990.3,0.001]
[1769008373870,19.45505778,2991.4,2990.3,0.001]
[1769008374067,9.4263087,2991.3,2990.3,0.001]
[1769008374882,10.02874908,2991.4,2990.3,0.001]
[1769008374883,6.68583272,2991.4,2990.3,0.001]
[1769008375175,3.34284499,2991.5,2990.3,0.001]
[1769008375533,6.68568998,2991.5,2990.3,0.001]
[1769008375738,3.34284499,2991.5,2990.3,0.001]
[1769008375938,3.3427174,2991.6,2990.3,0.001]
[1769008375939,10.02606777,2992.2,2990.3,0.001]
[1769008376169,1.94523765,2992.1,2990.3,0.001]
[1769008376740,11.37154635,2992.1,2990.3,0.001]
[1769008377070,11.37154635,2992.1,2990.7,0.001]
[1769008377250,0.002,2991.8,2990.7,0.554]
[1769008377445,0.002,2991.8,2990.7,0.001]
[1769008377875,3.34269287,2991.6,2990.7,0.001]
[1769008378047,6.43,2991.7,2990.7,0.03443698]
[1769008378249,0.002,2991.8,2990.7,9.37665967]
[1769008378549,0.002,2992.0,2990.9,9.37565967]
[1769008379970,0.002,2992.0,2991.0,6.68672684]
[1769008380177,0.002,2992.0,2991.0,12.71902309]
[1769008380767,0.002,2992.0,2991.0,9.37565967]
[1769008381475,0.002,2992.0,2990.8,1.66172503]
[1769008381678,0.002,2992.0,2990.7,0.001]
[1769008381842,0.002,2992.0,2990.9,0.553]
[1769008382239,0.002,2992.0,2991.0,3.34336342]
[1769008382576,10.02506265,2992.5,2990.7,9.37665967]
[1769008382776,9.26016744,2992.4,2990.8,0.553]
[1769008382939,11.18869045,2992.3,2990.7,0.001]
[1769008383258,11.18869045,2992.3,2990.8,0.553]
[1769008383573,11.18869045,2992.3,2990.9,0.553]
[1769008384072,10.02606777,2992.2,2990.9,0.553]
[1769008384260,10.02606777,2992.2,2991.0,0.553]
[1769008384463,2.12147582,2992.1,2991.0,0.553]
[1769008384864,2.12147582,2992.1,2991.1,0.553]
[1769008385578,11.38164326,2992.1,2990.7,0.001]
[1769008385772,11.38164326,2992.1,2990.8,0.553]
[1769008385941,19.28724051,2991.9,2990.8,0.553]
[1769008386145,8.38993101,2991.8,2990.8,0.553]
[1769008386346,8.38993101,2991.8,2990.7,0.001]
[1769008386647,9.57230144,2991.7,2990.7,0.001]
[1769008386848,9.26016744,2991.7,2990.7,0.001]
[1769008387558,6.43,2991.6,2990.7,0.001]
[1769008387758,1.56901674,2991.5,2990.7,0.001]
[1769008388176,6.68583272,2991.4,2990.7,0.001]
[1769008389183,3.34291636,2991.4,2990.7,0.001]
[1769008389687,4.911876,2991.5,2990.7,0.001]
[1769008389854,9.77271584,2991.6,2990.8,0.001]
[1769008390179,1.31153167,2991.5,2990.8,0.001]
[1769008390563,9.7727097,2991.6,2990.8,0.001]
[1769008390953,6.43,2991.6,2990.8,0.001]
[1769008391180,9.77269997,2991.6,2990.8,0.001]
[1769008391386,13.11539994,2991.6,2990.8,0.001]
[1769008391583,9.77269997,2991.6,2990.8,0.001]
[1769008392089,17.76981809,2991.6,2990.8,0.001]
[1769008392385,17.76981809,2991.6,2990.3,0.001]
[1769008392386,9.57250257,2991.5,2990.3,0.001]
[1769008392684,9.26016744,2991.3,2990.3,0.001]
[1769008392991,15.69016744,2991.3,2990.3,0.001]
[1769008393189,0.31230634,2991.2,2990.3,0.001]
[1769008393392,1.60024738,2991.1,2990.3,0.001]
[1769008393778,10.86041482,2991.1,2989.1,3.000296]
[1769008393983,9.57258066,2991.0,2989.2,0.553]
[1769008394180,6.687174,2990.8,2989.2,0.553]
[1769008394573,6.687174,2990.8,2989.2,3.89837145]
[1769008394918,1.59473414,2990.7,2989.3,0.38983715]
[1769008395358,1.59473414,2990.7,2989.2,0.553]
[1769008396289,6.6876212,2990.6,2989.2,0.553]
[1769008396675,6.6876212,2990.6,2989.3,0.553]
[1769008396874,6.6876212,2990.6,2988.4,9.1148515]
[1769008396875,8.98261694,2990.5,2988.4,9.1148515]
[1769008397068,8.98261694,2990.5,2988.5,9.6678515]
[1769008397268,1.90140487,2990.4,2988.6,0.96678515]
[1769008397865,1.90140487,2990.4,2988.6,4.31280851]
[1769008398065,1.90140487,2990.4,2988.7,0.553]
[1769008398293,6.68829214,2990.3,2988.7,0.553]
[1769008398508,10.03243821,2990.3,2988.6,0.96678515]
[1769008398689,2.091646,2990.2,2988.8,0.553]
[1769008398863,2.091646,2990.2,2988.8,9.6678515]
[1769008399198,3.34403424,2990.4,2989.0,9.1148515]
[1769008399378,6.68812107,2990.4,2989.0,9.1148515]
[1769008399770,6.68812107,2990.4,2989.1,0.553]
[1769008399995,3.34403424,2990.4,2989.1,0.553]
[1769008400182,6.68812107,2990.4,2989.1,0.553]
[1769008400366,6.68720316,2990.8,2989.2,0.96678515]
[1769008400574,10.03081932,2990.8,2989.2,10.08163665]
[1769008400770,10.03081932,2990.8,2989.3,0.553]
[1769008400969,19.01343626,2990.8,2988.8,12.46061975]
[1769008401169,19.01343626,2990.8,2989.4,0.553]
[1769008401399,1.90134363,2990.7,2989.4,0.553]
[1769008402100,1.90134363,2990.7,2989.5,0.553]
[1769008402265,8.98261694,2990.5,2989.2,0.001]
[1769008402469,8.98261694,2990.5,2989.2,0.554]
[1769008402679,2.23578593,2990.4,2989.2,0.554]
[1769008403196,8.98261694,2990.2,2989.2,0.001]
[1769008403768,8.98261694,2990.2,2988.8,0.553]
[1769008403966,8.98261694,2990.2,2988.1,3.34658648]
[1769008403967,8.98261694,2990.2,2988.0,9.1148515]
[1769008404174,8.98261694,2990.0,2988.1,1.46448515]
[1769008404476,8.98261694,2989.7,2988.1,0.553]
[1769008404903,8.98261694,2989.7,2988.2,0.553]
[1769008405405,10.03411599,2989.8,2988.2,9.1148515]
[1769008405406,3.34470533,2989.8,2988.2,9.1148515]
[1769008405603,3.34470533,2989.8,2987.8,0.001]
[1769008405604,3.3444816,2990.0,2988.4,9.1148515]
[1769008405767,6.6889632,2990.0,2988.4,9.1148515]
[1769008405972,7.44768569,2990.0,2988.6,9.1148515]
[1769008406204,4.10320409,2990.0,2988.6,9.1148515]
[1769008406374,2.23578593,2990.4,2988.7,9.1148515]
[1769008406375,3.34414607,2990.3,2988.7,9.1148515]
[1769008406797,6.68829214,2990.3,2988.7,9.1148515]
[1769008406975,6.68829214,2990.3,2988.8,0.553]
[1769008407170,10.03243821,2990.3,2988.8,0.553]
[1769008407410,15.67090908,2990.3,2988.8,0.553]
[1769008407707,15.67090908,2990.3,2988.5,0.96678515]
[1769008407708,1.7906695,2990.2,2988.9,0.553]
[1769008408082,10.77328644,2990.2,2988.5,0.96678515]
[1769008408288,8.98261694,2990.0,2988.5,0.96678515]
[1769008408605,8.98261694,2990.0,2987.9,12.46158709]
[1769008408781,8.98261694,2990.0,2988.0,0.553]
[1769008409171,8.98261694,2990.0,2987.9,9.1148515]
[1769008409379,8.98261694,2990.0,2987.8,0.001]
[1769008409380,8.98261694,2989.8,2987.8,0.001]
[1769008409578,8.98261694,2989.6,2987.9,0.553]
[1769008409878,8.98261694,2989.4,2987.8,0.001]
[1769008410307,8.98261694,2989.2,2987.8,0.001]
[1769008412379,19.01908274,2989.1,2987.8,0.001]
[1769008412978,8.98261694,2989.0,2987.8,0.001]
[1769008413233,8.98261694,2989.0,2986.5,9.1148515]
[1769008413234,7.25969382,2988.4,2986.0,0.17453018]
[1769008413378,7.25969382,2988.4,2986.2,9.1148515]
[1769008413379,8.98261694,2988.3,2986.2,9.1148515]
[1769008413695,8.98261694,2988.3,2986.4,3.34850559]
[1769008413900,8.98261694,2988.3,2986.5,9.1148515]
[1769008414422,10.03780908,2988.7,2986.6,3.34828902]
[1769008414611,1.9020426,2988.6,2988.0,0.001]
[1769008414814,1.9020426,2988.6,2986.7,1.19905546]
[1769008415107,1.9020426,2988.6,2986.7,10.31390696]
[1769008415478,4.34928359,2989.0,2987.1,9.1148515]
[1769008415678,6.69030574,2989.4,2987.3,9.1148515]
[1769008415904,4.27450317,2989.5,2987.3,9.1148515]
[1769008416089,4.27450317,2989.5,2986.7,1.37376244]
[1769008416090,6.69023182,2989.5,2987.7,9.1148515]
[1769008416288,6.69023182,2989.5,2987.8,9.6678515]
[1769008416491,8.98261694,2990.1,2987.9,3.34683222]
[1769008416691,8.98261694,2989.4,2987.2,3.34760658]
[1769008416930,10.60684802,2989.3,2987.3,0.33476066]
[1769008417100,10.60684802,2989.3,2987.3,0.553]
[1769008417687,1.62423108,2989.3,2987.4,9.14832542]
[1769008417882,8.98261694,2989.8,2987.5,9.1148515]
[1769008418084,8.98261694,2989.8,2987.5,12.46209145]
[1769008418280,8.98261694,2989.8,2987.5,9.1148515]
[1769008418485,10.0344516,2989.7,2987.6,3.34709354]
[1769008418680,8.98261694,2989.6,2987.6,3.34709354]
[1769008418902,1.90170685,2989.5,2987.7,1.2461945]
[1769008419106,1.90170685,2989.5,2987.7,10.361046]
[1769008419425,6.6889632,2990.0,2987.9,9.1148515]
[1769008419586,10.0334448,2990.0,2988.1,9.1148515]
[1769008419782,8.98261694,2989.9,2987.7,1.2461945]
[1769008419982,8.98261694,2989.9,2988.2,0.553]
[1769008420187,6.6889632,2990.0,2988.2,9.6678515]
[1769008420383,8.98261694,2990.9,2988.5,9.1148515]
[1769008420588,3.343587,2990.8,2988.9,9.1148515]
[1769008420885,6.6872255,2990.8,2989.1,9.1148515]
[1769008421086,3.34350432,2990.9,2989.1,9.1148515]
[1769008421280,6.68516228,2991.7,2989.4,17.177633]
[1769008421518,0.66871623,2991.6,2989.5,10.361046]
[1769008421702,0.66871623,2991.6,2989.6,0.553]
[1769008422284,0.66871623,2991.6,2989.6,9.6678515]
[1769008422587,0.002,2991.8,2990.2,9.1148515]
[1769008422802,0.002,2991.8,2990.5,26.819589]
[1769008422997,0.002,2991.8,2990.6,9.1148515]
[1769008424498,0.002,2991.8,2990.7,3.34369879]
[1769008424688,0.002,2992.0,2990.8,9.1148515]
[1769008424891,3.34124093,2992.9,2991.1,9.1148515]
[1769008425293,6.68248186,2992.9,2991.1,9.1148515]
[1769008425698,6.68248186,2992.9,2991.2,0.553]
[1769008426313,0.002,2991.4,2991.1,9.1148515]
[1769008426515,6.6822586,2993.0,2991.2,0.553]
[1769008426699,0.66842586,2992.9,2991.2,8.7767463]
[1769008426907,0.002,2992.8,2991.2,8.7767463]
[1769008427105,0.002,2992.8,2991.3,0.553]
[1769008427525,0.002,2992.8,2991.4,0.553]
[1769008428236,8.45732228,2992.8,2991.5,0.553]
[1769008428409,8.45732228,2992.8,2990.7,8.2237463]
[1769008428410,10.02472764,2992.6,2991.6,0.553]
[1769008428610,6.68315176,2992.6,2991.6,0.553]
[1769008429335,0.91257481,2992.7,2991.6,0.553]
[1769008429539,0.002,2992.8,2991.6,0.553]
[1769008429540,0.002,2992.8,2991.6,8.7767463]
[1769008429737,0.002,2993.4,2991.6,8.7767463]
[1769008429738,0.002,2993.4,2992.0,8.2237463]
[1769008429941,0.002,2993.6,2992.2,8.2237463]
[1769008430141,0.002,2993.6,2992.3,9.232591]
[1769008430435,0.002,2993.6,2992.2,11.56572631]
[1769008430634,0.002,2993.6,2992.3,0.553]
[1769008431539,0.002,2993.6,2992.3,8.7767463]
[1769008431739,0.002,2993.6,2992.4,0.553]
[1769008431965,0.002,2993.6,2992.5,0.553]
[1769008432139,0.002,2993.6,2992.6,0.553]
[1769008432919,0.002,2993.6,2991.4,4.555558]
[1769008433239,0.002,2993.6,2991.3,8.2237463]
[1769008433240,8.45732228,2993.6,2991.5,1.83093043]
[1769008433446,8.45732228,2993.6,2990.8,8.2237463]
[1769008433746,8.45532228,2993.4,2991.0,11.56710303]
[1769008433943,8.45532228,2993.2,2990.5,8.2237463]
[1769008434143,8.45532228,2993.2,2990.6,0.553]
[1769008434313,0.128,2992.9,2990.1,3.34435377]
[1769008434514,8.45532228,2992.6,2990.2,1.15681001]
[1769008434752,8.45532228,2992.6,2990.3,0.553]
[1769008434954,10.02439266,2992.7,2990.6,12.5457143]
[1769008435126,3.34146422,2992.7,2990.9,31.9495073]
[1769008435446,6.68203534,2993.1,2991.1,8.2237463]
[1769008435647,9.96905804,2993.0,2991.2,1.43067463]
[1769008435947,9.96905804,2993.0,2991.2,0.553]
[1769008436642,10.02372279,2992.9,2991.2,0.553]
[1769008436837,6.68248186,2992.9,2991.2,0.553]
[1769008437143,4.85490147,2993.0,2991.4,8.2237463]
[1769008437459,6.68233142,2993.0,2991.4,8.2237463]
[1769008438645,7.83344849,2993.4,2990.9,8.0229688]
[1769008438829,7.83344849,2993.4,2991.5,0.001]
[1769008439618,10.02171369,2993.5,2991.6,8.0229688]
[1769008439819,0.002,2993.6,2992.0,8.0229688]
[1769008440022,0.002,2993.6,2992.2,8.0229688]
[1769008440347,3.34249817,2993.6,2992.2,8.0229688]
[1769008440525,3.34246045,2993.6,2992.2,8.0229688]
[1769008440849,3.34246045,2993.6,2991.7,0.80239688]
[1769008440850,0.002,2993.6,2991.7,0.80239688]
[1769008441049,0.002,2993.6,2992.2,0.553]
[1769008441550,0.002,2993.6,2992.4,8.0229688]
[1769008442046,3.33956719,2994.4,2992.6,8.0229688]
[1769008442254,9.77148749,2994.5,2992.8,8.0229688]
[1769008442450,9.77148749,2994.5,2992.9,8.82526568]
[1769008442451,1.31128956,2994.4,2992.9,8.82526568]
[1769008442852,6.67935744,2994.3,2992.9,0.80229688]
[1769008443050,10.01903616,2994.3,2993.0,0.553]
[1769008443350,6.67935744,2994.3,2993.1,0.553]
[1769008443848,10.01903616,2994.3,2993.1,0.553]
[1769008444473,6.67935744,2994.3,2993.1,0.553]
[1769008444955,6.43,2994.2,2993.1,0.47697778]
[1769008445121,1.31093574,2994.1,2993.1,0.47697778]
[1769008446559,1.31128956,2994.4,2993.1,0.47697778]
[1769008446755,0.002,2994.5,2993.1,3.81796029]
[1769008447935,0.002,2994.5,2993.1,0.47697778]
[1769008448270,0.002,2994.5,2993.1,3.81799218]
[1769008448431,0.002,2994.5,2993.2,8.0229688]
[1769008448632,0.002,2994.5,2993.1,7.15900985]
[1769008448633,0.002,2994.5,2993.4,8.0229688]
[1769008448934,0.002,2994.5,2993.6,3.34045964]
[1769008449459,0.002,2994.5,2993.1,3.34095347]
[1769008449664,0.002,2994.5,2993.2,0.552]
[1769008451052,0.002,2994.5,2992.5,3.34166447]
[1769008451053,7.83544849,2994.5,2993.3,0.552]
[1769008451265,0.002,2994.3,2993.3,0.552]
[1769008451567,7.83544849,2994.3,2992.8,0.552]
[1769008452636,7.83344849,2994.1,2992.4,0.552]
[1769008452838,10.02103616,2994.3,2992.4,0.552]
[1769008453066,10.02103616,2994.3,2992.4,11.9167626]
[1769008453268,1.0804781,2994.2,2992.5,1.19167626]
[1769008453667,1.0804781,2994.2,2991.8,8.0229688]
[1769008453668,7.83344849,2994.0,2991.8,8.0229688]
[1769008453969,7.83344849,2994.0,2992.6,0.552]
[1769008454845,6.6798036,2994.1,2992.6,0.552]
[1769008455060,10.0197054,2994.1,2992.6,0.552]
[1769008455369,1.11001835,2994.0,2992.6,0.552]
[1769008456749,1.11001835,2994.0,2992.7,7.99332747]
[1769008456953,6.68135744,2994.3,2992.7,7.99332747]
[1769008457175,10.02103616,2994.3,2992.7,7.99332747]
[1769008457555,6.68135744,2994.3,2992.7,7.99332747]
[1769008457878,10.02103616,2994.3,2992.2,7.99332747]
[1769008458046,10.02103616,2994.3,2992.8,0.552]
[1769008458246,1.0804781,2994.2,2992.8,0.552]
[1769008458973,6.6798036,2994.1,2992.8,0.552]
[1769008460245,6.6798036,2994.1,2992.2,7.99332747]
[1769008460462,8.16664662,2994.0,2991.7,7.99332747]
[1769008460781,8.16664662,2994.0,2991.8,0.552]
[1769008461075,8.16664662,2993.7,2991.9,0.85453275]
[1769008461582,8.16664662,2993.7,2992.0,0.552]
[1769008463077,10.02137892,2993.6,2992.0,0.552]
[1769008463470,10.02137892,2993.6,2992.0,8.54532747]
[1769008463794,2.48661556,2993.9,2992.2,7.99332747]
[1769008463984,6.6798036,2994.1,2992.4,7.99332747]
[1769008464995,10.0197054,2994.1,2992.4,7.99332747]
[1769008465157,0.002,2993.9,2992.5,0.552]
[1769008465558,0.002,2993.9,2992.3,1.52320502]
[1769008465759,0.002,2993.9,2992.6,0.552]
[1769008465990,9.98768182,2993.9,2992.2,0.001]
[1769008466193,8.16664662,2993.7,2992.2,0.001]
[1769008466491,0.31187909,2993.6,2992.2,0.001]
[1769008466691,8.16664662,2993.4,2992.2,0.001]
[1769008466858,1.8210352,2993.9,2992.2,0.001]
[1769008466859,8.16664662,2993.2,2992.2,0.001]
[1769008467061,10.0233879,2993.0,2992.2,0.001]
[1769008467892,18.19003452,2993.0,2991.6,0.552]
[1769008468493,14.84890522,2993.0,2991.7,0.03342581]
[1769008468657,6.6822586,2993.0,2991.6,0.552]
[1769008468856,10.0233879,2993.0,2991.6,0.552]
[1769008469091,6.68270514,2992.8,2991.6,0.552]
[1769008469599,3.3411293,2993.0,2991.6,0.552]
[1769008469600,6.68069612,2993.7,2991.7,8.02675328]
[1769008469774,6.68069612,2993.7,2991.7,7.99332747]
[1769008470467,10.02104418,2993.7,2991.7,7.99332747]
[1769008470692,1.00210442,2993.6,2991.8,9.51639879]
[1769008470895,1.00210442,2993.6,2991.8,10.06839879]
[1769008471087,6.68114246,2993.5,2991.8,13.41079239]
[1769008471487,6.68114246,2993.5,2991.8,16.7532618]
[1769008471681,6.68114246,2993.5,2991.8,13.41079239]
[1769008471887,0.76832469,2993.4,2991.9,0.60492231]
[1769008473105,6.68114246,2993.5,2992.0,7.99332747]
[1769008473527,0.002,2995.3,2993.3,7.84947428]
[1769008473824,0.002,2996.0,2994.0,7.99332747]
[1769008474180,3.33800654,2995.8,2994.0,7.99332747]
[1769008474545,0.33400065,2995.7,2994.1,1.35133275]
[1769008475075,3.33811796,2995.7,2994.2,3.33979026]
[1769008475277,0.002,2995.9,2994.2,14.67290799]
[1769008475594,6.67784844,2995.9,2994.1,0.79933275]
[1769008475806,8.16664662,2995.8,2993.3,7.99332747]
[1769008475977,8.16664662,2995.8,2993.5,7.99332747]
[1769008476177,6.67784844,2995.9,2993.9,7.99332747]
[1769008476375,10.01577266,2995.9,2994.0,6.983605]
[1769008476612,6.67784844,2995.9,2994.1,3.33988612]
[1769008476778,0.66798484,2995.8,2994.2,0.33398861]
[1769008477503,6.67623592,2995.7,2994.2,0.33398861]
[1769008478325,10.01435388,2995.7,2994.2,0.33398861]
[1769008478484,18.1810005,2995.7,2994.3,0.552]